[Event "Tata Steel-A 80th"]
[Site "Wijk aan Zee"]
[Date "2018.01.23"]
[Round "9"]
[White "Mamedyarov, Shakhriyar"]
[Black "Kramnik, Vladimir"]
[Result "1/2-1/2"]
[ECO "C54"]
[WhiteElo "2804"]
[BlackElo "2787"]
[Annotator "Fernandez,D"]
[PlyCount "54"]
[EventDate "2018.01.13"]
[EventType "tourn"]
[EventRounds "13"]
[EventCountry "NED"]
[EventCategory "20"]
[SourceTitle "CBM 183"]
[Source "ChessBase"]
[SourceDate "2018.03.14"]
[SourceVersion "1"]
[SourceVersionDate "2018.03.14"]
[SourceQuality "1"]
[TimeControl "40/6000+30:20/3000+30:900+30"]

1. e4 {[%emt 0:00:00]} e5 {[%emt 0:02:11]} 2. Nf3 {[%emt 0:00:00]} Nc6 {
[%emt 0:00:28]} 3. Bc4 {[%emt 0:00:00]} Bc5 {[%emt 0:00:47]} 4. c3 {[%emt 0:00:
06]} Nf6 {[%emt 0:00:11]} 5. d3 {[%emt 0:00:07]} O-O {[%emt 0:06:44]} 6. O-O {
[%emt 0:05:57]} d5 {[%emt 0:00:44]} 7. exd5 {[%emt 0:00:17]} Nxd5 {[%emt 0:00:
05]} 8. a4 {[%emt 0:08:11]} (8. Re1 Bg4 9. h3 Bh5 10. Nbd2 {is the main line,
and the jury is still out. Personally, following the trail of most-played
moves, I am sceptical of Black's concept after} Nb6 11. Bb5 f6 12. Ne4 Be7 13.
Ng3 $36) 8... Bf5 {[%emt 0:08:59]} (8... Nb6 9. Bb5 Ne7 {is a fascinating
gambit line which I have already mentioned on this site.}) (8... a5 {is the
most played move, espoused by Aronian among others.}) 9. Re1 {[%emt 0:28:29]}
Nb6 {[%emt 0:02:11]} 10. Bb5 {[%emt 0:01:27]} Ne7 {[%emt 0:01:16] This delayed
implementation of the gambit is based on a Dominguez game from a year ago, and
seems to equalise, albeit in slightly uninspiring fashion if White reacts
correctly.} 11. a5 {[%emt 0:02:56]} (11. Nxe5 c6 12. Bc4 Nxc4 13. dxc4 Qxd1 14.
Rxd1 Ng6 $44 {is more dangerous for White than Black.}) (11. Rxe5 Bd6 12. Re1 (
12. Rxf5 Nxf5 13. d4 $44 {is a maximalist exchange sac, leading to a
strategically confusing game.}) 12... a6 13. Bc4 Nxc4 14. dxc4 c5 $11) 11... c6
{[%emt 0:00:32]} 12. axb6 {[%emt 0:00:44]} cxb5 {[%emt 0:00:07]} 13. Be3 {
[%emt 0:10:58]} (13. Rxa7 Qxb6 14. Rxa8 Bxf2+ 15. Kh1 Rxa8 $15 {Mamedov,
R-Dominguez Perez,L Doha 2016}) (13. bxa7 $5 Bxa7 14. Be3 Bxe3 15. Rxa8 Bxf2+
16. Kxf2 Qxa8 17. Rxe5 $11) 13... axb6 {[%emt 0:04:51]} 14. Rxa8 {[%emt 0:00:
18]} Qxa8 {[%emt 0:00:04]} 15. Bxc5 {[%emt 0:12:08]} bxc5 {[%emt 0:00:14]} 16.
Rxe5 {[%emt 0:00:07]} Qd8 {[%emt 0:00:18]} 17. d4 {[%emt 0:08:36]} (17. Rxc5 {
seems to improve slightly.} Bxd3 (17... Qxd3 18. Qxd3 Bxd3 19. Na3 $14 {
might now have been a little something.}) 18. Na3 $5 ({Following} 18. Nd4 Bxb1
19. Qxb1 b4 20. Rb5 $11 {we have transposed to the game.}) 18... Ng6 (18... Be4
19. Qxd8 Rxd8 20. h3 {is still inexplicably more pleasant for White.}) 19. Ne5
Bc4 20. Qxd8 Rxd8 21. f4 Nxf4 22. Naxc4 bxc4 23. Nxc4 $11 {The endgame is
roughly equal, but the imbalance can only favour White in the event of
slightly sub-optimal play from either side.}) 17... cxd4 {[%emt 0:25:31]} (
17... b6 $5 {tries to keep something in the position, but after the accurate}
18. Qe1 Be6 19. Ng5 {Black is forced into a slightly speculative pawn
sacrifice:} Ng6 20. Nxe6 fxe6 21. Rxe6 Nf4 $44) 18. Nxd4 {[%emt 0:02:46]} Bxb1
{[%emt 0:01:19]} 19. Qxb1 {[%emt 0:00:08]} b4 {[%emt 0:00:34]} (19... Nc6 20.
Rxb5 Nxd4 21. cxd4 Qxd4 22. Rxb7 Re8 23. h3 $14) 20. Rb5 $11 {[%emt 0:03:34]
As far as I can see, White's tenuous grip on an edge has now completely gone,
and there is also 19...Nc6 to think about, but nevertheless for a few moves
his position is marginally more pleasant. We have transposed to the game.} bxc3
{[%emt 0:02:42]} 21. bxc3 {[%emt 0:00:03]} Nd5 {[%emt 0:09:23]} 22. Qd3 {
[%emt 0:02:56]} ({Following} 22. Qb3 Qe8 $1 $11 {Black infiltrates to e1 and
takes c3 for b7 anyway.}) 22... Nf4 {[%emt 0:02:36]} 23. Qf3 {[%emt 0:02:10]}
Ne6 {[%emt 0:03:22]} 24. Rxb7 {[%emt 0:01:35]} (24. Qe4 Nxd4 25. Qxd4 Qxd4 26.
cxd4 Re8 27. Kf1 Re7 $11) (24. Nxe6 $5 {demands a bit of precision.} Qd2 $1 (
24... fxe6 25. Qe2 Qc8 26. h3 $14) 25. h3 fxe6 26. Qe3 Qxe3 27. fxe3 Rc8 28.
Rxb7 Rxc3 29. Kf2 $11 {The proper computer evaluation of this position is +/=
due to White's better king, but in practice this is almost totally drawn.})
24... Nxd4 {[%emt 0:00:08]} 25. cxd4 {[%emt 0:00:02]} Qxd4 {[%emt 0:00:07] Now
two further unnecessary moves were played.} 26. g3 {[%emt 0:00:05]} g6 {
[%emt 0:00:19]} 27. h4 {[%emt 0:00:07]} h5 {[%emt 0:00:11]} 1/2-1/2

[Event "Tata Steel-A 80th"]
[Site "Wijk aan Zee"]
[Date "2018.01.23"]
[Round "9"]
[White "Matlakov, Maxim"]
[Black "Giri, Anish"]
[Result "0-1"]
[ECO "A07"]
[WhiteElo "2718"]
[BlackElo "2752"]
[Annotator "Fernandez,D"]
[PlyCount "78"]
[EventDate "2018.01.13"]
[EventType "tourn"]
[EventRounds "13"]
[EventCountry "NED"]
[EventCategory "20"]
[SourceTitle "CBM 183"]
[Source "ChessBase"]
[SourceDate "2018.03.14"]
[SourceVersion "1"]
[SourceVersionDate "2018.03.14"]
[SourceQuality "1"]
[TimeControl "40/6000+30:20/3000+30:900+30"]

1. Nf3 {[%emt 0:00:00]} d5 {[%emt 0:00:17]} 2. g3 {[%emt 0:00:00]} Bg4 {
[%emt 0:00:41]} 3. Bg2 {[%emt 0:01:58] One of the great things about these
slightly unassuming openings is that an annotator can start to make meaningful
comments right from the word 'go'.} c6 {[%emt 0:00:06]} 4. O-O {[%emt 0:00:28]}
Nd7 {[%emt 0:00:12]} 5. h3 {[%emt 0:00:23]} (5. c4 Bxf3 6. Bxf3 Ne5 $11 {
is a motif worth bearing in mind.}) 5... Bh5 {[%emt 0:00:06] Perhaps nothing
at this level, but nevertheless an indication that Black is not trying to hold
a draw.} 6. d4 {[%emt 0:01:51]} e6 {[%emt 0:00:17]} 7. c4 {[%emt 0:00:07]} Be7
{[%emt 0:00:15]} 8. Nc3 {[%emt 0:00:20]} (8. cxd5 exd5 9. Nc3 Ngf6 10. Nh4 {
Vachier-Lagrave, M-Gunina,V Gibraltar 2016, could be one way to introduce the
bishop-for-knight imbalance anyway.}) 8... dxc4 {[%emt 0:01:27] But this is
the really comment-worthy point. Anish Giri has decided to play for a win.} (
8... Ngf6 {was normal, obviously.}) 9. b3 {[%emt 0:00:29]} cxb3 {[%emt 0:08:48]
} 10. Qxb3 {[%emt 0:00:26]} Qb6 {[%emt 0:08:21]} (10... Ngf6 {was a slightly
strange reaction from a top player a year ago, considering the strategic
importance of the b7-pawn. Following} 11. Qxb7 O-O 12. Bf4 Qa5 13. g4 Bg6 14.
g5 Nh5 15. Bd2 Rfd8 16. Qxc6 (16. Rfc1 $14) 16... Rac8 17. Qb5 Qxb5 18. Nxb5 a6
$11 {Eljanov,P-So,W Shamkir 2017 Black nevertheless equalised.}) 11. Qa4 {
[%emt 0:00:37]} Ngf6 {[%emt 0:18:21]} 12. Rb1 {[%emt 0:15:41]} Qc7 {[%emt 0:00:
13]} 13. Bf4 {[%emt 0:00:24]} Qc8 {[%emt 0:00:08]} 14. Rfc1 {[%emt 0:25:29]} (
14. Qb3 {After} Bg6 15. Rb2 Nb6 16. Ne5 $44 {for instance Black's position is
slightly unpleasant and White has at least full compensation.}) 14... O-O {
[%emt 0:03:36]} 15. Qb3 {[%emt 0:05:39] Seemingly forcing some concessions,
but there is a relatively clever tactical defence of the b7-pawn available.}
Bg6 {[%emt 0:10:42]} 16. Rb2 {[%emt 0:01:05]} Rd8 $1 {[%emt 0:02:49] Black has
already equalised. There is no easy way to disentangle the White pieces. So
White goes for a slow one.} 17. a4 $1 {[%emt 0:07:42]} (17. Nh4 Nb6 18. Be5
Nfd7 $15) (17. Nd2 {is no good immediately:} Nb6 $15) 17... a5 {[%emt 0:02:49]}
18. Nd2 {[%emt 0:02:23]} Nh5 $6 {[%emt 0:15:13]} (18... Nf8 $5 19. Nc4 (19. Be5
N6d7 20. Bf4 Bb4 $132) 19... Rxd4 $1 {A natural exchange sacrifice. Now} 20.
Nb6 Qd8 21. Nxa8 Rb4 22. Qa2 Qxa8 $44 {is easier for Black to play, even if
objectively equal.}) 19. Be3 {[%emt 0:01:48]} Nhf6 {[%emt 0:00:09]} 20. Nc4 $14
{[%emt 0:05:11] White gets ambitious, and right now it seems justifiable.} Nd5
{[%emt 0:01:19]} 21. Qxb7 {[%emt 0:04:09]} Bb4 {[%emt 0:03:18]} 22. Qxc8 {
[%emt 0:01:46]} Raxc8 $6 {[%emt 0:00:22] An objectively dubious but
competitively understandable move.} (22... Rdxc8 23. Na2 c5 24. dxc5 Bxc5 25.
Bxc5 Rxc5 26. Rb7 $36 {might not be so terrible, but Black lacks winning
chances.}) 23. Na2 {[%emt 0:09:17]} Nxe3 {[%emt 0:00:25]} 24. fxe3 {[%emt 0:00:
14]} c5 {[%emt 0:00:05]} 25. Nd6 {[%emt 0:02:52]} (25. Rd1 $1 {was the
computer-precise move, adding to the pawn tension in the centre and
threatening to open the c-file since there is now longer a pin there. For
instance:} Nf6 (25... cxd4 26. Nxb4 axb4 27. Rxb4 dxe3 28. Nxe3 Nc5 29. Rxd8+
Rxd8 30. a5 $16) 26. Nxb4 cxb4 27. Nxa5 $16) 25... Ba3 $1 {[%emt 0:01:37]} 26.
Nxc8 {[%emt 0:00:15]} Bxb2 {[%emt 0:00:41]} 27. Ne7+ {[%emt 0:00:33]} Kf8 {
[%emt 0:00:05]} 28. Nxg6+ {[%emt 0:00:15]} hxg6 {[%emt 0:00:02]} 29. Rc2 {
[%emt 0:06:11]} Ba3 {[%emt 0:00:24]} 30. Bc6 {[%emt 0:07:49]} (30. Nc3 {
and Nb5 looks natural to me, and White is probably still equal or as near as
makes no difference. Presumably the scare was over} cxd4 31. exd4 Rc8 {but
White has the calm} 32. Be4 $11 {and then Nb5 anyway.}) 30... cxd4 {[%emt 0:09:
24]} 31. exd4 {[%emt 0:00:04]} Rc8 {[%emt 0:01:18]} 32. e3 {[%emt 0:04:40]} Ke7
{[%emt 0:01:12]} 33. Kf1 {[%emt 0:02:04]} Bd6 {[%emt 0:05:08]} 34. g4 {[%emt 0:
00:35]} Nb6 {[%emt 0:00:20]} 35. Rc1 $2 {[%emt 0:03:05] The finish is now
clinical in what was until now just a slightly unpleasant position.} (35. Ke2
Rh8 $1 $15 {illustrates one problem.}) (35. Kf2 f5 36. Nc1 Nd5 37. Nd3 Kf6 $15
{is also gradually getting worse for White.}) 35... Ba3 {[%emt 0:01:24]} 36.
Rc3 {[%emt 0:00:22]} Bb4 {[%emt 0:02:24]} 37. Nxb4 {[%emt 0:01:46]} axb4 {
[%emt 0:00:09]} 38. Rc5 {[%emt 0:00:02]} b3 $19 {[%emt 0:02:00] Black is
winning a piece. White played one more move:} 39. a5 {[%emt 0:00:27]} Nd7 {
[%emt 0:03:17] and then promptly resigned.} 0-1

[Event "Tata Steel-A 80th"]
[Site "Wijk aan Zee"]
[Date "2018.01.23"]
[Round "9"]
[White "So, Wesley"]
[Black "Svidler, Peter"]
[Result "1/2-1/2"]
[ECO "D02"]
[WhiteElo "2792"]
[BlackElo "2768"]
[Annotator "Fernandez,D"]
[PlyCount "75"]
[EventDate "2018.01.13"]
[EventType "tourn"]
[EventRounds "13"]
[EventCountry "NED"]
[EventCategory "20"]
[SourceTitle "CBM 183"]
[Source "ChessBase"]
[SourceDate "2018.03.14"]
[SourceVersion "1"]
[SourceVersionDate "2018.03.14"]
[SourceQuality "1"]
[TimeControl "40/6000+30:20/3000+30:900+30"]

1. d4 {[%emt 0:00:00]} Nf6 {[%emt 0:00:08]} 2. Nf3 {[%emt 0:00:00]} g6 {
[%emt 0:00:07]} 3. Nbd2 {[%emt 0:03:04] Home-made chess it is today! It is a
relief to see one of the world elite players trying out an 'interesting' 3rd
move in this position - there are many which have appealed to me and other
theory-lite players in the past, including Bg5, c3, b4...} ({It would be
remiss of me not to mention the 'Old Speckled Egg' setup, pioneered by my
fellow English GM, Keith Arkell. The idea is similar to those of the text.} 3.
b4 Bg7 4. Bb2 O-O 5. Nbd2 d6 $1 {Against ...d5 setups, White obtains an easier
position!} 6. e3 c5 $11 {Fernandez,D-Ghasi,A chess. com INT 2017, Black had
equalised and ultimately won.}) 3... d5 {[%emt 0:03:51]} 4. e3 {[%emt 0:01:01]}
(4. b4 $5 {is interesting if we bear the above note in mind. For instance, now}
Bg7 5. Bb2 O-O 6. e3 Bf5 7. c4 a5 8. b5 {leaves Black a bit short of plans, so
Black might have to play more directly, for instance with 4...a5.}) 4... Nc6 {
[%emt 0:15:09] Among other things, this move prevents b4, but it is hard to
find plans for Black in what follows.} 5. b3 {[%emt 0:11:01]} Bg7 {[%emt 0:01:
58]} 6. Bb2 {[%emt 0:00:49]} O-O {[%emt 0:01:28]} 7. Be2 {[%emt 0:02:45]} a5 {
[%emt 0:07:40]} 8. a3 {[%emt 0:04:31]} (8. c4 {attempts to call Black's bluff:}
a4 {is not that threatening since after} 9. bxa4 {the pawn will prove rather
hard to regain.}) 8... b6 {[%emt 0:05:39]} (8... Ne4 9. c4 Nxd2 10. Qxd2 $14)
9. O-O {[%emt 0:00:58]} e6 {[%emt 0:01:27]} 10. c4 {[%emt 0:02:43]} Ne7 {
[%emt 0:04:24]} 11. cxd5 {[%emt 0:08:38] Allowing Black's light-squared bishop
to develop on its preferred diagonal.} ({We have nevertheless reached a
vaguely Catalan-esque position, in which White tends to keep the central pawn
tension until an advantageous moment, so} 11. Qc2 $5 {deserved consideration.
There could follow:} c6 12. Rac1 Ba6 13. Rfd1 Rc8 14. Qb1 $14 {and White has a
good version of the Catalan, because ...c5 is almost impossible to arrange.})
11... exd5 {[%emt 0:01:05]} 12. b4 {[%emt 0:03:02]} c6 {[%emt 0:08:55]} 13. Rc1
{[%emt 0:03:21] A slightly strange move, conceding the a-file and hence
equality.} (13. b5 {was the most principled. Doubtless, Black has in mind the
equally principled} cxb5 14. Bxb5 Bd7 {but here White can pretend to have an
edge, e.g.} 15. Bxd7 Qxd7 16. a4 $32 {when if nothing else, the queenside pawn
structure bodes well for an endgame.}) 13... axb4 {[%emt 0:04:21]} 14. axb4 {
[%emt 0:00:05]} b5 {[%emt 0:00:07] Black keeps it solid, since ...Ne8-d6-c4 is
not too hard to arrange for him.} 15. Nb3 {[%emt 0:05:01]} (15. Ne5 Qd6 16. Qc2
$5 {was an interesting and quite maximalist pawn sacrifice.}) 15... Ra2 {
[%emt 0:11:22]} 16. Bc3 {[%emt 0:05:27]} Ne4 {[%emt 0:04:38]} 17. Be1 {[%emt 0:
04:47]} (17. Nfd2 Nxc3 18. Rxc3 Qd6 $11 {still leads to an equal position-
White has two knights but only one useful outpost!}) 17... Ra6 {[%emt 0:04:15]
From a human point of view, it is sensible to cut out Na5 options with the
attendant rook-traps, and also protect the c6-pawn.} (17... Bg4 $5 18. h3 Bxf3
19. Bxf3 Nd6 $11 {is equal for precisely the same reason as the last note.})
18. Nc5 {[%emt 0:03:48]} Rb6 $6 {[%emt 0:03:00] Solid to a fault.} (18... Nxc5
19. Rxc5 Qd6 {might have been slightly more unpleasant for White to play - c6
is not easy to hit, and Black's doubling on the a-file comes quickly.}) 19. Ra1
{[%emt 0:06:35]} Bg4 {[%emt 0:09:30]} 20. h3 {[%emt 0:01:55]} Bxf3 {[%emt 0:00:
14]} 21. Bxf3 {[%emt 0:00:07]} Nxc5 {[%emt 0:00:44]} 22. bxc5 {[%emt 0:00:06]}
Rb8 {[%emt 0:01:12] Now if we are looking at the position seriously, White has
a slight edge, though quite how to prosecute it is not clear.} 23. Ra7 {
[%emt 0:06:42]} (23. Qc2 Ra8 24. Bb4 Qd7 25. Ra2 Ra7 26. Rfa1 Rfa8 27. Be2 $14
{followed by kingside pawn pushes might be the best way to try- Black has no
counterplay and while his position is tremendously solid, he has no option
other than staying solid.}) 23... Ra8 {[%emt 0:03:46]} 24. Qa1 {[%emt 0:00:23]}
Qb8 {[%emt 0:00:18]} (24... Rxa7 $5 25. Qxa7 Nf5 26. Bb4 Qg5 $132) 25. Rxa8 {
[%emt 0:02:16]} Qxa8 {[%emt 0:00:10]} 26. Bb4 {[%emt 0:00:03]} Qb7 {[%emt 0:01:
05]} 27. Qc3 {[%emt 0:00:25]} Ra8 {[%emt 0:00:36]} 28. Ra1 {[%emt 0:00:06]} h5
{[%emt 0:02:50]} 29. g4 {[%emt 0:02:04] Now play looks similar to two notes
ago, but Black is closer to arranging the major-piece swaps in a good way.}
hxg4 {[%emt 0:00:47]} 30. hxg4 {[%emt 0:00:04]} f5 {[%emt 0:01:18]} 31. Rxa8+ {
[%emt 0:04:39]} Qxa8 {[%emt 0:00:06]} 32. Qa3 {[%emt 0:00:03]} Qc8 {[%emt 0:03:
48] On principle, with White having played kingside pawn pushes, it is correct
to keep queens on.} (32... Qxa3 $5 33. Bxa3 f4 $11 {was a way for Black to
think about maybe, eventually, winning-on a good day with a following wind,
and if and only if White tries to win with a pawn break.}) 33. gxf5 {[%emt 0:
01:17]} Qxf5 {[%emt 0:00:32]} 34. Kg2 {[%emt 0:04:39]} g5 {[%emt 0:02:02] The
position is now completely balanced and it is for White to force a draw before
Black develops real play with ...Ng6 or ...g4.} 35. Be2 {[%emt 0:05:17]} Qe4+ {
[%emt 0:01:42]} (35... Ng6 36. Qd3 $1 $11) 36. Bf3 {[%emt 0:02:00]} Qf5 {
[%emt 0:00:25]} 37. Be2 {[%emt 0:00:06]} Qe4+ {[%emt 0:00:03]} 38. Bf3 {
[%emt 0:00:04]} 1/2-1/2

[Event "Tata Steel-A 80th"]
[Site "Wijk aan Zee"]
[Date "2018.01.24"]
[Round "10"]
[White "Giri, Anish"]
[Black "Karjakin, Sergey"]
[Result "1/2-1/2"]
[ECO "E00"]
[WhiteElo "2752"]
[BlackElo "2753"]
[Annotator "Fernandez,D"]
[PlyCount "51"]
[EventDate "2018.01.13"]
[EventType "tourn"]
[EventRounds "13"]
[EventCountry "NED"]
[EventCategory "20"]
[SourceTitle "CBM 183"]
[Source "ChessBase"]
[SourceDate "2018.03.14"]
[SourceVersion "1"]
[SourceVersionDate "2018.03.14"]
[SourceQuality "1"]
[TimeControl "40/6000+30:20/3000+30:900+30"]

1. d4 {[%emt 0:00:00]} Nf6 {[%emt 0:00:04]} 2. c4 {[%emt 0:00:00]} e6 {[%emt 0:
00:03]} 3. g3 {[%emt 0:00:00]} Bb4+ {[%emt 0:00:15]} 4. Nd2 {[%emt 0:00:00]
Maybe similarly to yesterday, Anish Giri goes for the creation of a slight
imbalance. 4.Bd2 is played more often.} c5 {[%emt 0:00:45] And Karjakin does
not object. In principle, if one plays these ...Bb4 lines, be they in the
Ragozin, Nimzo-Indian, Bogo-Indian or even something else, one should not
object to giving up this bishop for a knight and then arranging all one's
pawns on dark squares.} (4... d5 5. Bg2 O-O 6. Ngf3 b6 7. O-O Bb7 {is another
normal way to play this position with Black.}) 5. a3 {[%emt 0:00:00]} Bxd2+ {
[%emt 0:00:05]} 6. Qxd2 {[%emt 0:00:02]} cxd4 {[%emt 0:00:07]} 7. Nf3 {[%emt 0:
00:11]} (7. Qxd4 Nc6 8. Qd3 O-O 9. Bg2 d5 $11) 7... d5 {[%emt 0:00:47]} (7...
b6 $5 8. Nxd4 Bb7 9. f3 $132 {could lead to some kind of almost Maroczy-like
play}) 8. Bg2 {[%emt 0:01:01]} dxc4 {[%emt 0:00:19]} 9. Qxd4 {[%emt 0:00:14]}
Qxd4 {[%emt 0:00:07]} 10. Nxd4 {[%emt 0:00:03]} O-O {[%emt 0:00:08] The
position is now 'more open than closed' and so I would probably slightly
prefer to be White, but very accurate play is needed to make anything of this.}
11. Be3 {[%emt 0:00:25]} (11. Bg5 $5 e5 12. Nb5 Nc6 13. Rd1 $14 {is maybe one
way to go; White will choose soon whether to play with Bxf6, Nd6 etc or with
Be3, h3, Nc3, 0-0 and try and make use of the bishop pair only once the rooks
come off. The Catalan bishop always guarantees at least sufficient
compensation.}) 11... Nd5 {[%emt 0:00:40]} 12. Rc1 {[%emt 0:00:21]} (12. O-O $5
Nxe3 13. fxe3 e5 $11 {is creative but probably nothing.}) 12... c3 $1 {[%emt 0:
00:26]} (12... Nxe3 13. fxe3 e5 14. Nb5 Nc6 15. Nd6 $14) 13. b3 {[%emt 0:00:05]
} Nxe3 {[%emt 0:03:29]} 14. fxe3 {[%emt 0:00:06]} Nd7 {[%emt 0:00:07]} 15. Rxc3
{[%emt 0:02:48]} Rd8 {[%emt 0:07:50]} 16. O-O {[%emt 0:14:21]} Nf6 {[%emt 0:00:
32]} 17. Rc7 {[%emt 0:11:35]} (17. Nf3 $5 $14 {is a counter-intuitive machine
suggestion that makes a lot of sense once you look at it a few times, but in
any case Black might be able to neutralise the pressure with the standard
bishop-for-knight swap, because the machine overrates bishops. For instance:}
Bd7 18. Ne5 Rac8 19. Rxc8 Rxc8 {and Black is getting nice and active, whether
White accepts the unusual swap offer or not.}) 17... Rb8 $1 {[%emt 0:00:05] An
ugly but necessary move, and after a few more similar ones it transpires that
White is not better.} 18. Nb5 {[%emt 0:10:21]} a5 {[%emt 0:00:05]} 19. Na7 {
[%emt 0:07:07]} Bd7 {[%emt 0:07:57]} 20. Rd1 {[%emt 0:01:09]} (20. Rxb7 $2 Rxb7
21. Bxb7 Rb8 $15) 20... b6 {[%emt 0:09:07] With equality.} 21. Bc6 {[%emt 0:04:
56]} Bxc6 {[%emt 0:00:59]} 22. Rxd8+ {[%emt 0:00:07]} Rxd8 {[%emt 0:00:04]} 23.
Nxc6 {[%emt 0:00:37]} Rd1+ {[%emt 0:01:46]} 24. Kg2 {[%emt 0:01:19]} h5 {
[%emt 0:01:33]} 25. Ne5 {[%emt 0:03:34]} Ng4 {[%emt 0:02:25]} (25... Re1 $5 {
might deserve consideration at lower levels, to try and play on based on
White's structure.}) 26. Nxg4 $11 {[%emt 0:01:56] The rook endgame is almost
completely equal, with White's activity counterbalanced by a structural issue.}
1/2-1/2